[Event "Late-Titled-Tuesday-Blitz-March-12-2024"]
[Site "Chess.com"]
[Date "2024.03.12"]
[Round "2"]
[White "trriinu"]
[Black "Stanbad1"]
[Result "0-1"]
[WhiteElo "2268"]
[BlackElo "2532"]
[TimeControl "180+1"]
[EndTime "14:17:14 PDT"]
[Termination "Stanbad1 won by checkmate"]

1. e4 {[%clk 0:03:00]} 1... e6 {[%clk 0:03:00.1]} 2. d4 {[%clk 0:02:59.8]} 2...
d5 {[%clk 0:03:00.4]} 3. Nd2 {[%clk 0:03:00.6]} 3... Nf6 {[%clk 0:03:00.2]} 4.
e5 {[%clk 0:03:00.8]} 4... Nfd7 {[%clk 0:02:59.9]} 5. Bd3 {[%clk 0:03:01.5]}
5... c5 {[%clk 0:02:58.9]} 6. c3 {[%clk 0:03:02.1]} 6... Nc6 {[%clk 0:02:59.4]}
7. Ne2 {[%clk 0:03:02.6]} 7... cxd4 {[%clk 0:02:56.5]} 8. cxd4 {[%clk
0:03:02.6]} 8... f6 {[%clk 0:02:57.4]} 9. exf6 {[%clk 0:03:02.5]} 9... Nxf6
{[%clk 0:02:55.2]} 10. O-O {[%clk 0:02:55.4]} 10... Bd6 {[%clk 0:02:53.6]} 11.
Nf3 {[%clk 0:02:37.8]} 11... O-O {[%clk 0:02:52.4]} 12. Bg5 {[%clk 0:02:35.8]}
12... Qb6 {[%clk 0:02:48.2]} 13. Bxf6 {[%clk 0:02:21.6]} 13... Rxf6 {[%clk
0:02:46.7]} 14. b3 {[%clk 0:01:56.4]} 14... Bd7 {[%clk 0:02:32.8]} 15. Ng3
{[%clk 0:01:56]} 15... Raf8 {[%clk 0:02:30.4]} 16. Rc1 {[%clk 0:01:29.9]} 16...
Be8 {[%clk 0:02:12.8]} 17. Ng5 {[%clk 0:00:43.3]} 17... Bg6 {[%clk 0:01:39.8]}
18. Nh5 {[%clk 0:00:34.3]} 18... Bxd3 {[%clk 0:01:26.5]} 19. Qxd3 {[%clk
0:00:07.3]} 19... Rh6 {[%clk 0:01:19.6]} 20. Ng3 {[%clk 0:00:03]} 20... Bf4
{[%clk 0:01:17.5]} 21. Nf3 {[%clk 0:00:01.8]} 21... Bxc1 {[%clk 0:01:16.1]} 22.
Rxc1 {[%clk 0:00:02.7]} 22... Rhf6 {[%clk 0:01:10.9]} 23. Qe3 {[%clk 0:00:03]}
23... g6 {[%clk 0:00:53.2]} 24. Rd1 {[%clk 0:00:03.4]} 24... Ne7 {[%clk
0:00:50.3]} 25. Qh6 {[%clk 0:00:03.2]} 25... Nf5 {[%clk 0:00:22.5]} 26. Nxf5
{[%clk 0:00:03.5]} 26... gxf5 {[%clk 0:00:23.1]} 27. Qh5 {[%clk 0:00:02.9]}
27... Qc7 {[%clk 0:00:17.5]} 28. Ne5 {[%clk 0:00:02.2]} 28... Qg7 {[%clk
0:00:17.7]} 29. Rd3 {[%clk 0:00:02.2]} 29... f4 {[%clk 0:00:17.8]} 30. Rf3
{[%clk 0:00:02.2]} 30... Rf5 {[%clk 0:00:18]} 31. Qh4 {[%clk 0:00:02.2]} 31...
Rg5 {[%clk 0:00:18.4]} 32. Qh3 {[%clk 0:00:02.2]} 32... h6 {[%clk 0:00:18.7]}
33. g3 {[%clk 0:00:02.3]} 33... fxg3 {[%clk 0:00:18.4]} 34. hxg3 {[%clk
0:00:02.6]} 34... Rxf3 {[%clk 0:00:17.6]} 35. Nxf3 {[%clk 0:00:03.5]} 35... Rf5
{[%clk 0:00:18.2]} 36. Ne5 {[%clk 0:00:03.6]} 36... Kh7 {[%clk 0:00:17.3]} 37.
f4 {[%clk 0:00:03.8]} 37... Rxf4 {[%clk 0:00:17]} 38. Qxe6 {[%clk 0:00:03.2]}
38... Qxg3+ {[%clk 0:00:17.2]} 39. Kh1 {[%clk 0:00:03.1]} 39... Rf1# {[%clk
0:00:17.5]} 0-1

[Event "Late-Titled-Tuesday-Blitz-March-12-2024"]
[Site "Chess.com"]
[Date "2024.03.12"]
[Round "2"]
[White "RuleOfTwo"]
[Black "newauto"]
[Result "1-0"]
[WhiteElo "2471"]
[BlackElo "2115"]
[TimeControl "180+1"]
[EndTime "14:17:15 PDT"]
[Termination "RuleOfTwo won by resignation"]

1. Nf3 {[%clk 0:03:00.9]} 1... c6 {[%clk 0:03:00.9]} 2. g3 {[%clk 0:02:59.4]}
2... d5 {[%clk 0:03:01.8]} 3. Bg2 {[%clk 0:02:59.7]} 3... Nf6 {[%clk 0:03:02.2]}
4. O-O {[%clk 0:03:00.2]} 4... Bf5 {[%clk 0:03:02.7]} 5. c4 {[%clk 0:03:00.6]}
5... e6 {[%clk 0:03:02.6]} 6. b3 {[%clk 0:02:58.5]} 6... Be7 {[%clk 0:03:02.6]}
7. Bb2 {[%clk 0:02:58.7]} 7... O-O {[%clk 0:03:03.1]} 8. d4 {[%clk 0:02:56.7]}
8... Re8 {[%clk 0:03:03.1]} 9. Nbd2 {[%clk 0:02:56.2]} 9... Nbd7 {[%clk
0:03:02.8]} 10. Rc1 {[%clk 0:02:54.8]} 10... Qa5 {[%clk 0:03:02.2]} 11. a4
{[%clk 0:02:23.7]} 11... Ne4 {[%clk 0:02:59.2]} 12. Nxe4 {[%clk 0:02:18.5]}
12... Bxe4 {[%clk 0:02:56.7]} 13. Ne5 {[%clk 0:02:04.6]} 13... Bxg2 {[%clk
0:02:52.4]} 14. Kxg2 {[%clk 0:02:05.5]} 14... Nxe5 {[%clk 0:02:49.6]} 15. dxe5
{[%clk 0:02:06.4]} 15... Rad8 {[%clk 0:02:44.7]} 16. Qc2 {[%clk 0:02:03.8]}
16... dxc4 {[%clk 0:02:40.2]} 17. Qxc4 {[%clk 0:02:04.7]} 17... Qd5+ {[%clk
0:02:35.3]} 18. Qxd5 {[%clk 0:02:01.2]} 18... Rxd5 {[%clk 0:02:36.2]} 19. Bc3
{[%clk 0:01:53.4]} 19... Red8 {[%clk 0:02:34.8]} 20. f4 {[%clk 0:01:49.1]} 20...
a5 {[%clk 0:02:29.8]} 21. Kf3 {[%clk 0:01:40.2]} 21... Bb4 {[%clk 0:02:16.5]}
22. Bxb4 {[%clk 0:01:34.7]} 22... axb4 {[%clk 0:02:17.4]} 23. Rc4 {[%clk
0:01:35.2]} 23... c5 {[%clk 0:02:17]} 24. Rfc1 {[%clk 0:01:34.6]} 24... b6
{[%clk 0:02:16.8]} 25. a5 {[%clk 0:01:31.1]} 25... bxa5 {[%clk 0:02:16]} 26.
Rxc5 {[%clk 0:01:31.7]} 26... Kf8 {[%clk 0:01:59.2]} 27. Rc7 {[%clk 0:01:28.7]}
27... R8d7 {[%clk 0:01:49]} 28. Rc8+ {[%clk 0:01:21.2]} 28... Ke7 {[%clk
0:01:47.1]} 29. Ra8 {[%clk 0:01:21]} 29... Rb7 {[%clk 0:01:17.5]} 30. Ra1 {[%clk
0:00:58]} 30... Rbb5 {[%clk 0:01:14]} 31. Ra7+ {[%clk 0:00:58.1]} 31... Ke8
{[%clk 0:01:08.6]} 32. Rc1 {[%clk 0:00:57.6]} 32... Rd7 {[%clk 0:01:05.6]} 33.
Rc8+ {[%clk 0:00:53.2]} 33... Ke7 {[%clk 0:01:04.8]} 34. Raa8 {[%clk 0:00:46.6]}
34... Rdb7 {[%clk 0:00:57.6]} 35. Re8+ {[%clk 0:00:35.3]} 35... Kd7 {[%clk
0:00:57.1]} 36. Rad8+ {[%clk 0:00:31.4]} 36... Kc6 {[%clk 0:00:56.1]} 37. Rd6+
{[%clk 0:00:27.2]} 37... Kc7 {[%clk 0:00:42.6]} 38. e4 {[%clk 0:00:19.2]} 38...
a4 {[%clk 0:00:33.3]} 39. bxa4 {[%clk 0:00:18.5]} 39... b3 {[%clk 0:00:32.7]}
40. axb5 {[%clk 0:00:17.7]} 40... b2 {[%clk 0:00:32.4]} 41. Re7+ {[%clk
0:00:17.7]} 41... Kc8 {[%clk 0:00:31.9]} 42. Re8+ {[%clk 0:00:13.6]} 42... Kc7
{[%clk 0:00:31.5]} 43. Rd1 {[%clk 0:00:13.5]} 43... Rxb5 {[%clk 0:00:30.9]} 44.
Rb1 {[%clk 0:00:13.9]} 44... Kd7 {[%clk 0:00:29.7]} 45. Ra8 {[%clk 0:00:13.8]}
45... Rb3+ {[%clk 0:00:29]} 46. Kf2 {[%clk 0:00:13.1]} 46... Rb4 {[%clk
0:00:26.9]} 47. Ra2 {[%clk 0:00:12.2]} 47... Rxe4 {[%clk 0:00:25]} 48. Raxb2
{[%clk 0:00:12.6]} 1-0

[Event "Late-Titled-Tuesday-Blitz-March-12-2024"]
[Site "Chess.com"]
[Date "2024.03.12"]
[Round "2"]
[White "ljm509"]
[Black "kinga2008"]
[Result "0-1"]
[WhiteElo "2013"]
[BlackElo "2456"]
[TimeControl "180+1"]
[EndTime "14:17:15 PDT"]
[Termination "kinga2008 won on time"]

1. e4 {[%clk 0:01:07.6]} 1... c6 {[%clk 0:02:52.6]} 2. d4 {[%clk 0:01:06.7]}
2... d5 {[%clk 0:02:53.3]} 3. exd5 {[%clk 0:01:06.1]} 3... cxd5 {[%clk
0:02:52.9]} 4. Bf4 {[%clk 0:00:55.8]} 4... Nc6 {[%clk 0:02:52.3]} 5. c3 {[%clk
0:00:55.9]} 5... Bf5 {[%clk 0:02:51]} 6. Qb3 {[%clk 0:00:52.7]} 6... Qd7 {[%clk
0:02:50.4]} 7. Nd2 {[%clk 0:00:50.3]} 7... Nf6 {[%clk 0:02:46.7]} 8. Ngf3 {[%clk
0:00:50.2]} 8... e6 {[%clk 0:02:44.2]} 9. Bb5 {[%clk 0:00:50]} 9... a6 {[%clk
0:02:42.3]} 10. Ne5 {[%clk 0:00:49.5]} 10... Qc8 {[%clk 0:02:42.4]} 11. Be2
{[%clk 0:00:36.2]} 11... Nxe5 {[%clk 0:02:38.1]} 12. Bxe5 {[%clk 0:00:35.2]}
12... Nd7 {[%clk 0:02:38.4]} 13. Bg3 {[%clk 0:00:33.9]} 13... Be7 {[%clk
0:02:37.7]} 14. O-O {[%clk 0:00:33.6]} 14... O-O {[%clk 0:02:37.9]} 15. Rae1
{[%clk 0:00:33.6]} 15... b5 {[%clk 0:02:38]} 16. Nf3 {[%clk 0:00:33]} 16... Nb6
{[%clk 0:02:38]} 17. Ne5 {[%clk 0:00:29.6]} 17... Bf6 {[%clk 0:02:30.6]} 18. Nd3
{[%clk 0:00:27.4]} 18... Nc4 {[%clk 0:02:26.4]} 19. Nc5 {[%clk 0:00:27]} 19...
Nd2 {[%clk 0:02:25.6]} 20. Qd1 {[%clk 0:00:26.3]} 20... Nxf1 {[%clk 0:02:25.7]}
21. Bxf1 {[%clk 0:00:26.6]} 21... Be7 {[%clk 0:02:26.6]} 22. b4 {[%clk
0:00:26.5]} 22... a5 {[%clk 0:02:24.5]} 23. a3 {[%clk 0:00:24.9]} 23... axb4
{[%clk 0:02:25.4]} 24. axb4 {[%clk 0:00:25.4]} 24... Bxc5 {[%clk 0:02:25.2]} 25.
bxc5 {[%clk 0:00:21.5]} 25... Ra3 {[%clk 0:02:24.1]} 26. Qc1 {[%clk 0:00:21.4]}
26... Qa6 {[%clk 0:02:19.5]} 27. Bxb5 {[%clk 0:00:20.3]} 27... Qa5 {[%clk
0:02:15.3]} 28. Bf1 {[%clk 0:00:14.3]} 28... Rxc3 {[%clk 0:02:14.9]} 29. Qd2
{[%clk 0:00:13]} 29... Rxc5 {[%clk 0:02:15.1]} 30. Qe3 {[%clk 0:00:11.6]} 30...
Rc3 {[%clk 0:02:14.9]} 31. Qe5 {[%clk 0:00:10.5]} 31... f6 {[%clk 0:02:12.3]}
32. Qe2 {[%clk 0:00:10]} 32... Bd3 {[%clk 0:02:11.2]} 33. Qxe6+ {[%clk
0:00:09.9]} 33... Kh8 {[%clk 0:02:10.9]} 34. Bxd3 {[%clk 0:00:09.8]} 34... Rxd3
{[%clk 0:02:10.7]} 35. Bd6 {[%clk 0:00:10.7]} 35... Rg8 {[%clk 0:02:09.1]} 36.
g3 {[%clk 0:00:10]} 36... Rxd4 {[%clk 0:02:09.4]} 37. Re3 {[%clk 0:00:08.7]}
37... Re4 {[%clk 0:02:08.7]} 38. Rxe4 {[%clk 0:00:08.6]} 38... dxe4 {[%clk
0:02:09.6]} 39. Qxe4 {[%clk 0:00:09.2]} 39... Rd8 {[%clk 0:02:08.9]} 40. Bf4
{[%clk 0:00:08.8]} 40... Qd5 {[%clk 0:02:08.7]} 41. Qxd5 {[%clk 0:00:08.6]}
41... Rxd5 {[%clk 0:02:09.6]} 42. Be3 {[%clk 0:00:08.8]} 42... g5 {[%clk
0:02:10]} 43. h3 {[%clk 0:00:08.7]} 43... Kg7 {[%clk 0:02:10.5]} 44. Kg2 {[%clk
0:00:09]} 44... Kg6 {[%clk 0:02:11.2]} 45. g4 {[%clk 0:00:09.1]} 45... Rb5
{[%clk 0:02:10.5]} 46. Kf3 {[%clk 0:00:09]} 46... Rb3 {[%clk 0:02:11.4]} 47. Kg2
{[%clk 0:00:09]} 47... h5 {[%clk 0:02:12.3]} 48. Kf3 {[%clk 0:00:08.7]} 48...
Rb4 {[%clk 0:02:11.7]} 49. Kg3 {[%clk 0:00:08.5]} 49... Rb1 {[%clk 0:02:06.9]}
50. Kf3 {[%clk 0:00:08]} 50... Rg1 {[%clk 0:02:05.8]} 51. Bd4 {[%clk 0:00:07.9]}
51... h4 {[%clk 0:01:50.2]} 52. Be3 {[%clk 0:00:07]} 52... f5 {[%clk 0:01:50.8]}
53. gxf5+ {[%clk 0:00:06.7]} 53... Kxf5 {[%clk 0:01:51.7]} 54. Bd4 {[%clk
0:00:06.7]} 54... Rd1 {[%clk 0:01:51.2]} 55. Be3 {[%clk 0:00:06.7]} 55... Rb1
{[%clk 0:01:51.4]} 56. Kg2 {[%clk 0:00:06.8]} 56... Rb3 {[%clk 0:01:51.9]} 57.
Bd4 {[%clk 0:00:06.5]} 57... g4 {[%clk 0:01:49.4]} 58. hxg4+ {[%clk 0:00:06.2]}
58... Kxg4 {[%clk 0:01:50.3]} 59. Be5 {[%clk 0:00:06.1]} 59... Rd3 {[%clk
0:01:47.6]} 60. Bc7 {[%clk 0:00:05.7]} 60... Rd2 {[%clk 0:01:47.8]} 61. Bb8
{[%clk 0:00:05]} 61... h3+ {[%clk 0:01:47.2]} 62. Kg1 {[%clk 0:00:03.8]} 62...
Kf3 {[%clk 0:01:43.6]} 63. Bg3 {[%clk 0:00:03]} 63... Rd1+ {[%clk 0:01:32.4]}
64. Kh2 {[%clk 0:00:03.1]} 64... Kg4 {[%clk 0:01:33.1]} 65. f3+ {[%clk
0:00:01.5]} 65... Kxf3 {[%clk 0:01:33.1]} 66. Kxh3 {[%clk 0:00:02.4]} 66... Rh1+
{[%clk 0:01:33.7]} 67. Bh2 {[%clk 0:00:02.6]} 67... Kf2 {[%clk 0:01:34.1]} 68.
Kg4 {[%clk 0:00:01.7]} 68... Rxh2 {[%clk 0:01:34.5]} 0-1

[Event "Late-Titled-Tuesday-Blitz-March-12-2024"]
[Site "Chess.com"]
[Date "2024.03.12"]
[Round "2"]
[White "Alex_Banzea"]
[Black "AccioChess"]
[Result "1-0"]
[WhiteElo "2658"]
[BlackElo "2427"]
[TimeControl "180+1"]
[EndTime "14:17:17 PDT"]
[Termination "Alex_Banzea won on time"]

1. d4 {[%clk 0:03:00.9]} 1... Nf6 {[%clk 0:02:52.1]} 2. Nc3 {[%clk 0:03:01.4]}
2... c5 {[%clk 0:02:47.1]} 3. d5 {[%clk 0:03:00.7]} 3... d6 {[%clk 0:02:46.9]}
4. e4 {[%clk 0:03:00.4]} 4... e5 {[%clk 0:02:46.9]} 5. Nf3 {[%clk 0:02:59.2]}
5... Be7 {[%clk 0:02:47]} 6. a4 {[%clk 0:02:59.8]} 6... O-O {[%clk 0:02:47.4]}
7. Nd2 {[%clk 0:02:59.4]} 7... Ne8 {[%clk 0:02:45.7]} 8. Nc4 {[%clk 0:02:39.4]}
8... Bg5 {[%clk 0:02:44.7]} 9. Bxg5 {[%clk 0:02:31.5]} 9... Qxg5 {[%clk
0:02:45.6]} 10. h4 {[%clk 0:02:31.6]} 10... Qe7 {[%clk 0:02:44.3]} 11. Ne3
{[%clk 0:02:20.3]} 11... f5 {[%clk 0:02:40.8]} 12. exf5 {[%clk 0:02:15.3]} 12...
Bxf5 {[%clk 0:02:41.7]} 13. Nxf5 {[%clk 0:02:12.3]} 13... Rxf5 {[%clk
0:02:42.6]} 14. Bd3 {[%clk 0:02:01.6]} 14... Rf8 {[%clk 0:02:37.7]} 15. Ne4
{[%clk 0:01:53.5]} 15... h6 {[%clk 0:02:32.9]} 16. Qg4 {[%clk 0:01:49.2]} 16...
Nf6 {[%clk 0:02:20.1]} 17. Qg6 {[%clk 0:01:41.2]} 17... Nxe4 {[%clk 0:02:12.9]}
18. Bxe4 {[%clk 0:01:38.5]} 18... Rf6 {[%clk 0:02:13.4]} 19. Qh7+ {[%clk
0:01:36.6]} 19... Kf7 {[%clk 0:02:13.9]} 20. h5 {[%clk 0:01:26.9]} 20... Ke8
{[%clk 0:02:12.5]} 21. Ra3 {[%clk 0:01:02.3]} 21... Kd8 {[%clk 0:02:07.2]} 22.
Rg3 {[%clk 0:00:58.9]} 22... Rf7 {[%clk 0:01:58.9]} 23. Bf5 {[%clk 0:00:51.7]}
23... Qf6 {[%clk 0:01:39.1]} 24. Rf3 {[%clk 0:00:29.9]} 24... Qe7 {[%clk
0:01:27.4]} 25. Rhh3 {[%clk 0:00:20]} 25... Nd7 {[%clk 0:01:17.2]} 26. Be6
{[%clk 0:00:05.6]} 26... Nf6 {[%clk 0:01:13.7]} 27. Qg6 {[%clk 0:00:01.6]} 27...
Rf8 {[%clk 0:01:10.8]} 28. Rhg3 {[%clk 0:00:02.1]} 28... Ne8 {[%clk 0:00:38.6]}
29. Rxf8 {[%clk 0:00:01.6]} 29... Qxf8 {[%clk 0:00:39.5]} 30. Rf3 {[%clk
0:00:02]} 30... Nf6 {[%clk 0:00:39.2]} 31. Rf5 {[%clk 0:00:02.5]} 31... Kc7
{[%clk 0:00:16.3]} 32. g4 {[%clk 0:00:03.1]} 32... Qe7 {[%clk 0:00:12.2]} 33. g5
{[%clk 0:00:03.7]} 33... hxg5 {[%clk 0:00:11.2]} 34. h6 {[%clk 0:00:04.6]} 34...
Rh8 {[%clk 0:00:09.4]} 35. hxg7 {[%clk 0:00:04.7]} 35... Rh1+ {[%clk 0:00:09.2]}
36. Ke2 {[%clk 0:00:05.4]} 36... Nxd5 {[%clk 0:00:01.3]} 37. Rf7 {[%clk
0:00:06.3]} 1-0

[Event "Late-Titled-Tuesday-Blitz-March-12-2024"]
[Site "Chess.com"]
[Date "2024.03.12"]
[Round "2"]
[White "Supergiuly"]
[Black "kids2010"]
[Result "0-1"]
[WhiteElo "2358"]
[BlackElo "2763"]
[TimeControl "180+1"]
[EndTime "14:17:23 PDT"]
[Termination "kids2010 won on time"]

1. g3 {[%clk 0:02:57.4]} 1... e5 {[%clk 0:02:58]} 2. Bg2 {[%clk 0:02:58.3]} 2...
Nc6 {[%clk 0:02:57.5]} 3. Nc3 {[%clk 0:02:57.6]} 3... d6 {[%clk 0:02:57.2]} 4.
Nf3 {[%clk 0:02:57.1]} 4... f5 {[%clk 0:02:56.3]} 5. d3 {[%clk 0:02:56.9]} 5...
Nf6 {[%clk 0:02:56.4]} 6. O-O {[%clk 0:02:57]} 6... Be7 {[%clk 0:02:56.7]} 7. e4
{[%clk 0:02:56.9]} 7... O-O {[%clk 0:02:56.9]} 8. h3 {[%clk 0:02:52.4]} 8... h6
{[%clk 0:02:55.5]} 9. Be3 {[%clk 0:02:52]} 9... Qe8 {[%clk 0:02:31.6]} 10. Nd5
{[%clk 0:02:49.2]} 10... Nxd5 {[%clk 0:02:28.8]} 11. exd5 {[%clk 0:02:50.1]}
11... Nd8 {[%clk 0:02:29.6]} 12. d4 {[%clk 0:02:46.3]} 12... f4 {[%clk
0:02:27.3]} 13. Bd2 {[%clk 0:02:23.6]} 13... e4 {[%clk 0:02:27.1]} 14. Nh2
{[%clk 0:02:21.6]} 14... f3 {[%clk 0:02:24.5]} 15. Bh1 {[%clk 0:02:20.3]} 15...
Bxh3 {[%clk 0:02:21.5]} 16. Re1 {[%clk 0:02:20.3]} 16... Qg6 {[%clk 0:02:21.8]}
17. c4 {[%clk 0:02:08.9]} 17... Bh4 {[%clk 0:02:15.3]} 18. Nf1 {[%clk
0:01:58.8]} 18... Nf7 {[%clk 0:02:09.1]} 19. Qc2 {[%clk 0:01:52.5]} 19... Rae8
{[%clk 0:02:03.5]} 20. Bxf3 {[%clk 0:01:48.9]} 20... Bf5 {[%clk 0:02:03.1]} 21.
Bg2 {[%clk 0:01:30]} 21... e3 {[%clk 0:01:59.8]} 22. Qc3 {[%clk 0:01:29.7]}
22... e2 {[%clk 0:01:47.1]} 23. gxh4 {[%clk 0:01:21.3]} 23... exf1=Q+ {[%clk
0:01:40.4]} 24. Rxf1 {[%clk 0:01:12.3]} 24... Bd3 {[%clk 0:01:17]} 25. Rfe1
{[%clk 0:01:09]} 25... Qf5 {[%clk 0:01:17]} 26. Be3 {[%clk 0:00:58.9]} 26... Be4
{[%clk 0:01:16.3]} 27. f3 {[%clk 0:00:40.2]} 27... Bc2 {[%clk 0:00:56.6]} 28.
Rac1 {[%clk 0:00:35.6]} 28... Ba4 {[%clk 0:00:56.3]} 29. Bf2 {[%clk 0:00:25.9]}
29... Bd7 {[%clk 0:00:54.9]} 30. Re4 {[%clk 0:00:18.7]} 30... Qf6 {[%clk
0:00:47.3]} 31. Rce1 {[%clk 0:00:18.3]} 31... Rxe4 {[%clk 0:00:47.1]} 32. Rxe4
{[%clk 0:00:18]} 32... Bf5 {[%clk 0:00:45.7]} 33. Rf4 {[%clk 0:00:17.4]} 33...
g5 {[%clk 0:00:46]} 34. hxg5 {[%clk 0:00:17.4]} 34... hxg5 {[%clk 0:00:46.9]}
35. Rxf5 {[%clk 0:00:17.3]} 35... Qxf5 {[%clk 0:00:47.4]} 36. Qe3 {[%clk
0:00:17.2]} 36... Qf6 {[%clk 0:00:45.7]} 37. Bh3 {[%clk 0:00:17.1]} 37... Nh6
{[%clk 0:00:45.8]} 38. Be6+ {[%clk 0:00:16.9]} 38... Kg7 {[%clk 0:00:45.3]} 39.
Bg3 {[%clk 0:00:16.2]} 39... Nf5 {[%clk 0:00:43.9]} 40. Bxf5 {[%clk 0:00:15.5]}
40... Qxf5 {[%clk 0:00:44.8]} 41. Qe7+ {[%clk 0:00:15.4]} 41... Rf7 {[%clk
0:00:45.4]} 42. Qe6 {[%clk 0:00:14]} 42... Qxf3 {[%clk 0:00:43.9]} 43. Kh2
{[%clk 0:00:11.3]} 43... Qf6 {[%clk 0:00:40.2]} 44. Qe4 {[%clk 0:00:10.6]} 44...
Qg6 {[%clk 0:00:38.4]} 45. Qg4 {[%clk 0:00:10]} 45... Qc2+ {[%clk 0:00:35.3]}
46. Kh3 {[%clk 0:00:09.6]} 46... Qf5 {[%clk 0:00:33.8]} 47. c5 {[%clk
0:00:07.5]} 47... Kg6 {[%clk 0:00:33]} 48. cxd6 {[%clk 0:00:07.2]} 48... Rh7+
{[%clk 0:00:32.6]} 0-1

[Event "Late-Titled-Tuesday-Blitz-March-12-2024"]
[Site "Chess.com"]
[Date "2024.03.12"]
[Round "2"]
[White "ahkashefi2800"]
[Black "vugarrasulov"]
[Result "0-1"]
[WhiteElo "2623"]
[BlackElo "2936"]
[TimeControl "180+1"]
[EndTime "14:17:24 PDT"]
[Termination "vugarrasulov won on time"]

1. d4 {[%clk 0:02:59.6]} 1... d5 {[%clk 0:03:00]} 2. c4 {[%clk 0:02:59]} 2... c6
{[%clk 0:03:00]} 3. cxd5 {[%clk 0:02:57.3]} 3... Qxd5 {[%clk 0:02:59.6]} 4. Nc3
{[%clk 0:02:55.9]} 4... Qd8 {[%clk 0:02:59.7]} 5. e4 {[%clk 0:02:51.6]} 5... e5
{[%clk 0:02:52.9]} 6. dxe5 {[%clk 0:02:48.9]} 6... Qxd1+ {[%clk 0:02:53.8]} 7.
Kxd1 {[%clk 0:02:35.7]} 7... Bc5 {[%clk 0:02:53]} 8. f4 {[%clk 0:02:30.1]} 8...
g5 {[%clk 0:02:31.3]} 9. fxg5 {[%clk 0:02:21.9]} 9... Bg4+ {[%clk 0:02:30.6]}
10. Nf3 {[%clk 0:02:21.2]} 10... Nd7 {[%clk 0:02:30.6]} 11. Bf4 {[%clk
0:02:19.7]} 11... Ne7 {[%clk 0:02:30.3]} 12. h3 {[%clk 0:02:05.3]} 12... Bxf3+
{[%clk 0:02:24.7]} 13. gxf3 {[%clk 0:02:04.8]} 13... Ng6 {[%clk 0:02:25.6]} 14.
Bg3 {[%clk 0:02:01.7]} 14... Ndxe5 {[%clk 0:02:22.8]} 15. Be2 {[%clk 0:01:49.1]}
15... Be3 {[%clk 0:02:19.7]} 16. Kc2 {[%clk 0:01:35.9]} 16... Bxg5 {[%clk
0:02:18.4]} 17. h4 {[%clk 0:01:27.7]} 17... Bf4 {[%clk 0:02:17.2]} 18. Bf2
{[%clk 0:01:27.1]} 18... h5 {[%clk 0:02:14.9]} 19. Rad1 {[%clk 0:01:23.7]} 19...
b6 {[%clk 0:02:12]} 20. b4 {[%clk 0:01:17]} 20... O-O {[%clk 0:01:39.8]} 21. b5
{[%clk 0:01:14.6]} 21... Rac8 {[%clk 0:01:39.7]} 22. bxc6 {[%clk 0:00:56.3]}
22... Nxc6 {[%clk 0:01:40.6]} 23. Nd5 {[%clk 0:00:44.4]} 23... Nd4+ {[%clk
0:01:28.3]} 24. Kd3 {[%clk 0:00:43.4]} 24... Ne6 {[%clk 0:01:25.5]} 25. Bd4
{[%clk 0:00:30.4]} 25... Rfd8 {[%clk 0:01:16.5]} 26. Rhg1 {[%clk 0:00:22.2]}
26... Kh7 {[%clk 0:01:15]} 27. Bf6 {[%clk 0:00:07.2]} 27... Rd6 {[%clk
0:01:11.2]} 28. Bf1 {[%clk 0:00:05]} 28... Kh6 {[%clk 0:01:05.3]} 29. Bh3 {[%clk
0:00:05.1]} 29... Rc5 {[%clk 0:00:55.5]} 30. Ke2 {[%clk 0:00:04.1]} 30... Rc2+
{[%clk 0:00:51.7]} 31. Kf1 {[%clk 0:00:04.2]} 31... Be5 {[%clk 0:00:43.4]} 32.
Bg5+ {[%clk 0:00:02.6]} 32... Nxg5 {[%clk 0:00:41.8]} 33. Rxg5 {[%clk
0:00:02.9]} 33... f6 {[%clk 0:00:24.7]} 34. Rg2 {[%clk 0:00:02.6]} 34... Rxg2
{[%clk 0:00:24]} 35. Bxg2 {[%clk 0:00:02.6]} 35... Nxh4 {[%clk 0:00:24.3]} 36.
f4 {[%clk 0:00:03]} 36... Bxf4 {[%clk 0:00:22.8]} 37. Rd3 {[%clk 0:00:03.1]}
37... Bg5 {[%clk 0:00:22.8]} 38. Ra3 {[%clk 0:00:02.9]} 38... Nxg2 {[%clk
0:00:19.7]} 39. Kxg2 {[%clk 0:00:03]} 39... f5 {[%clk 0:00:20.5]} 40. Rxa7
{[%clk 0:00:02.3]} 40... fxe4 {[%clk 0:00:20.8]} 0-1